[Event "November 21 Early 2023"]
[Site "https://www.chess.com"]
[Date "2023.11.21"]
[Round "6"]
[White "Kotepalli, Sai Nirupama"]
[Black "Kim, Sergey"]
[Result "0-1"]
[Board "129"]
[TimeControl "180+1"]
[WhiteFideId "5039444"]
[BlackFideId "13700570"]
[WhiteElo "2402"]
[BlackElo "2573"]
[WhiteTeam "IND"]
[BlackTeam "KAZ"]
[WhiteClock "0:00:16"]
[BlackClock "0:02:17"]

1. d4 {[%clk 0:02:52]}  Nf6 {[%clk 0:02:59]} 2. Bf4 {[%clk 0:02:51]}  g6 {[%clk 0:02:59]} 3. e3 {[%clk 0:02:50]}  d6 {[%clk 0:02:59]} 4. c4 {[%clk 0:02:48]}  Bg7 {[%clk 0:03:00]} 5. Nf3 {[%clk 0:02:44]}  O-O {[%clk 0:03:00]} 6. h3 {[%clk 0:02:43]}  Nbd7 {[%clk 0:03:00]} 7. Nc3 {[%clk 0:02:43]}  b6 {[%clk 0:03:00]} 8. Be2 {[%clk 0:02:41]}  Bb7 {[%clk 0:03:00]} 9. O-O {[%clk 0:02:39]}  Ne4 {[%clk 0:03:00]} 10. Nxe4 {[%clk 0:02:29]}  Bxe4 {[%clk 0:03:00]} 11. a4 {[%clk 0:02:24]}  a5 {[%clk 0:03:00]} 12. Nd2 {[%clk 0:02:12]}  Bb7 {[%clk 0:02:59]} 13. Bf3 {[%clk 0:02:08]}  Qc8 {[%clk 0:02:59]} 14. Bxb7 {[%clk 0:02:07]}  Qxb7 {[%clk 0:02:59]} 15. Qf3 {[%clk 0:02:08]}  Qxf3 {[%clk 0:02:59]} 16. Nxf3 {[%clk 0:02:09]}  e5 {[%clk 0:02:59]} 17. dxe5 {[%clk 0:02:01]}  dxe5 {[%clk 0:02:59]} 18. Bg3 {[%clk 0:01:52]}  f6 {[%clk 0:02:55]} 19. Rfd1 {[%clk 0:01:48]}  Rfd8 {[%clk 0:02:55]} 20. Ne1 {[%clk 0:01:26]}  Nc5 {[%clk 0:02:55]} 21. f4 {[%clk 0:01:12]}  Kf7 {[%clk 0:02:46]} 22. fxe5 {[%clk 0:00:55]}  fxe5 {[%clk 0:02:46]} 23. Nf3 {[%clk 0:00:55]}  Re8 {[%clk 0:02:36]} 24. Rd5 {[%clk 0:00:45]}  c6 {[%clk 0:02:22]} 25. Rd6 {[%clk 0:00:36]}  Rac8 {[%clk 0:02:20]} 26. Rf1 {[%clk 0:00:28]}  Kg8 {[%clk 0:02:19]} 27. Ra1 {[%clk 0:00:16]}  Ne4 {[%clk 0:02:17]} 0-1

[Event "November 21 Early 2023"]
[Site "https://www.chess.com"]
[Date "2023.11.21"]
[Round "6"]
[White "Nguyen, Thi Mai Hung"]
[Black "Tologon tegin, Semetei"]
[Result "0-1"]
[Board "132"]
[TimeControl "180+1"]
[WhiteFideId "12401676"]
[BlackFideId "13800574"]
[WhiteElo "2067"]
[BlackElo "2258"]
[WhiteTeam "VIE"]
[BlackTeam "KGZ"]
[WhiteClock "0:00:00"]
[BlackClock "0:00:24"]

1. d4 {[%clk 0:02:58]}  c5 {[%clk 0:02:22]} 2. d5 {[%clk 0:02:56]}  e5 {[%clk 0:02:22]} 3. e4 {[%clk 0:02:55]}  d6 {[%clk 0:02:21]} 4. Nc3 {[%clk 0:02:55]}  Be7 {[%clk 0:02:21]} 5. Nf3 {[%clk 0:02:50]}  Nf6 {[%clk 0:02:19]} 6. Bd3 {[%clk 0:02:46]}  O-O {[%clk 0:02:18]} 7. Nd2 {[%clk 0:02:43]}  g6 {[%clk 0:01:55]} 8. O-O {[%clk 0:02:40]}  Nh5 {[%clk 0:01:55]} 9. Nc4 {[%clk 0:02:28]}  b6 {[%clk 0:01:50]} 10. a4 {[%clk 0:02:27]}  Ba6 {[%clk 0:01:50]} 11. Ne3 {[%clk 0:02:24]}  Bxd3 {[%clk 0:01:44]} 12. Qxd3 {[%clk 0:02:24]}  Bg5 {[%clk 0:01:42]} 13. Ng4 {[%clk 0:02:21]}  Nd7 {[%clk 0:01:33]} 14. g3 {[%clk 0:01:59]}  Bxc1 {[%clk 0:01:27]} 15. Raxc1 {[%clk 0:01:58]}  Qg5 {[%clk 0:01:27]} 16. Ne3 {[%clk 0:01:30]}  f5 {[%clk 0:01:26]} 17. h4 {[%clk 0:01:13]}  Qf6 {[%clk 0:01:23]} 18. Nb5 {[%clk 0:00:50]}  f4 {[%clk 0:01:11]} 19. Ng4 {[%clk 0:00:49]}  Qe7 {[%clk 0:01:07]} 20. Nc7 {[%clk 0:00:44]}  Rac8 {[%clk 0:01:06]} 21. Ne6 {[%clk 0:00:44]}  Rfe8 {[%clk 0:01:04]} 22. Qf3 {[%clk 0:00:30]}  Nf8 {[%clk 0:01:02]} 23. Nh6+ {[%clk 0:00:19]}  Kh8 {[%clk 0:01:02]} 24. Ng5 {[%clk 0:00:17]}  Kg7 {[%clk 0:00:54]} 25. Nf5+ {[%clk 0:00:12]}  gxf5 {[%clk 0:00:53]} 26. Qxh5 {[%clk 0:00:12]}  h6 {[%clk 0:00:50]} 27. exf5 {[%clk 0:00:09]}  hxg5 {[%clk 0:00:50]} 28. hxg5 {[%clk 0:00:09]}  Qf7 {[%clk 0:00:49]} 29. Qh6+ {[%clk 0:00:09]}  Kg8 {[%clk 0:00:49]} 30. g4 {[%clk 0:00:05]}  Qh7 {[%clk 0:00:44]} 31. Kg2 {[%clk 0:00:03]}  Qxh6 {[%clk 0:00:42]} 32. gxh6 {[%clk 0:00:04]}  Nh7 {[%clk 0:00:41]} 33. Rh1 {[%clk 0:00:04]}  Kf7 {[%clk 0:00:41]} 34. Rh5 {[%clk 0:00:02]}  Rg8 {[%clk 0:00:42]} 35. f3 {[%clk 0:00:03]}  Rg5 {[%clk 0:00:39]} 36. Rh4 {[%clk 0:00:02]}  Rh8 {[%clk 0:00:34]} 37. c4 {[%clk 0:00:02]}  Nf6 {[%clk 0:00:33]} 38. Rch1 {[%clk 0:00:00]}  Kg8 {[%clk 0:00:24]} 0-1

[Event "November 21 Early 2023"]
[Site "https://www.chess.com"]
[Date "2023.11.21"]
[Round "6"]
[White "NovoselovRoman"]
[Black "Dishman, Stephen"]
[Result "1/2-1/2"]
[Board "133"]
[TimeControl "180+1"]
[BlackFideId "403024"]
[WhiteElo "2528"]
[BlackElo "2204"]
[BlackTeam "ENG"]
[WhiteClock "0:00:10"]
[BlackClock "0:00:16"]

1. e4 {[%clk 0:03:00]}  c6 {[%clk 0:02:55]} 2. Nc3 {[%clk 0:02:59]}  d5 {[%clk 0:02:55]} 3. d4 {[%clk 0:02:59]}  dxe4 {[%clk 0:02:55]} 4. Nxe4 {[%clk 0:02:59]}  Bf5 {[%clk 0:02:55]} 5. Ng3 {[%clk 0:02:59]}  Bg6 {[%clk 0:02:56]} 6. Nh3 {[%clk 0:03:00]}  Nf6 {[%clk 0:02:54]} 7. Nf4 {[%clk 0:02:59]}  e5 {[%clk 0:02:55]} 8. dxe5 {[%clk 0:02:48]}  Qa5+ {[%clk 0:02:53]} 9. c3 {[%clk 0:02:46]}  Qxe5+ {[%clk 0:02:53]} 10. Be2 {[%clk 0:02:46]}  Nbd7 {[%clk 0:02:49]} 11. O-O {[%clk 0:02:46]}  O-O-O {[%clk 0:02:48]} 12. Qa4 {[%clk 0:02:41]}  Bc5 {[%clk 0:02:36]} 13. Nd3 {[%clk 0:02:25]}  Bxd3 {[%clk 0:02:30]} 14. Bxd3 {[%clk 0:02:25]}  Nb6 {[%clk 0:02:26]} 15. Qc2 {[%clk 0:02:19]}  h5 {[%clk 0:02:11]} 16. Bf5+ {[%clk 0:01:24]}  Kb8 {[%clk 0:02:08]} 17. Bg5 {[%clk 0:01:24]}  h4 {[%clk 0:02:03]} 18. Ne2 {[%clk 0:01:22]}  Nfd5 {[%clk 0:01:52]} 19. Rae1 {[%clk 0:00:59]}  Rde8 {[%clk 0:01:34]} 20. Qb1 {[%clk 0:00:39]}  Bd6 {[%clk 0:01:27]} 21. Nf4 {[%clk 0:00:37]}  Qxf4 {[%clk 0:01:05]} 22. Bxf4 {[%clk 0:00:35]}  Nxf4 {[%clk 0:01:06]} 23. Bg4 {[%clk 0:00:33]}  h3 {[%clk 0:00:58]} 24. gxh3 {[%clk 0:00:30]}  Nbd5 {[%clk 0:00:48]} 25. Qf5 {[%clk 0:00:23]}  Ref8 {[%clk 0:00:44]} 26. c4 {[%clk 0:00:20]}  Nf6 {[%clk 0:00:39]} 27. c5 {[%clk 0:00:16]}  Bc7 {[%clk 0:00:39]} 28. Re7 {[%clk 0:00:14]}  N4d5 {[%clk 0:00:29]} 29. Re2 {[%clk 0:00:09]}  g6 {[%clk 0:00:29]} 30. Qd3 {[%clk 0:00:08]}  Nf4 {[%clk 0:00:26]} 31. Qf3 {[%clk 0:00:08]}  Nxe2+ {[%clk 0:00:23]} 32. Qxe2 {[%clk 0:00:09]}  Nd5 {[%clk 0:00:24]} 33. Re1 {[%clk 0:00:08]}  f5 {[%clk 0:00:23]} 34. Bf3 {[%clk 0:00:08]}  Nf4 {[%clk 0:00:24]} 35. Qe7 {[%clk 0:00:08]}  Nxh3+ {[%clk 0:00:23]} 36. Kg2 {[%clk 0:00:09]}  Nf4+ {[%clk 0:00:23]} 37. Kh1 {[%clk 0:00:09]}  Rxh2+ {[%clk 0:00:20]} 38. Kxh2 {[%clk 0:00:08]}  Nd5+ {[%clk 0:00:20]} 39. Kg2 {[%clk 0:00:08]}  Nxe7 {[%clk 0:00:21]} 40. Rxe7 {[%clk 0:00:09]}  Rg8 {[%clk 0:00:19]} 41. Be2 {[%clk 0:00:09]}  g5 {[%clk 0:00:19]} 42. Bc4 {[%clk 0:00:09]}  Rf8 {[%clk 0:00:18]} 43. Be6 {[%clk 0:00:09]}  f4 {[%clk 0:00:18]} 44. Kf3 {[%clk 0:00:10]}  a5 {[%clk 0:00:16]} 45. a3 {[%clk 0:00:09]}  Be5 {[%clk 0:00:16]} 46. b4 {[%clk 0:00:09]}  axb4 {[%clk 0:00:16]} 47. axb4 {[%clk 0:00:10]}  Bc3 {[%clk 0:00:17]} 48. b5 {[%clk 0:00:10]}  cxb5 {[%clk 0:00:17]} 49. Bd5 {[%clk 0:00:10]}  Kc8 {[%clk 0:00:15]} 50. Bxb7+ {[%clk 0:00:08]}  Kb8 {[%clk 0:00:14]} 51. c6 {[%clk 0:00:08]}  Bb4 {[%clk 0:00:15]} 52. Rd7 {[%clk 0:00:08]}  Ba5 {[%clk 0:00:14]} 53. Ba6 {[%clk 0:00:07]}  Bc7 {[%clk 0:00:14]} 54. Bxb5 {[%clk 0:00:07]}  Rf5 {[%clk 0:00:14]} 55. Bd3 {[%clk 0:00:07]}  Re5 {[%clk 0:00:13]} 56. Rh7 {[%clk 0:00:05]}  Rc5 {[%clk 0:00:14]} 57. Be4 {[%clk 0:00:05]}  Re5 {[%clk 0:00:13]} 58. Rh8+ {[%clk 0:00:05]}  Ka7 {[%clk 0:00:13]} 59. Rc8 {[%clk 0:00:05]}  Kb6 {[%clk 0:00:14]} 60. Rg8 {[%clk 0:00:06]}  Rc5 {[%clk 0:00:14]} 61. Kg4 {[%clk 0:00:06]}  Re5 {[%clk 0:00:14]} 62. f3 {[%clk 0:00:06]}  Rc5 {[%clk 0:00:14]} 63. Rxg5 {[%clk 0:00:07]}  Rxg5+ {[%clk 0:00:14]} 64. Kxg5 {[%clk 0:00:08]}  Kc5 {[%clk 0:00:14]} 65. Kf6 {[%clk 0:00:08]}  Kb6 {[%clk 0:00:15]} 66. Ke6 {[%clk 0:00:08]}  Bb8 {[%clk 0:00:15]} 67. Kd7 {[%clk 0:00:09]}  Bc7 {[%clk 0:00:16]} 68. Ke6 {[%clk 0:00:09]}  Bb8 {[%clk 0:00:16]} 69. Kd5 {[%clk 0:00:09]}  Bc7 {[%clk 0:00:16]} 70. Ke6 {[%clk 0:00:10]} 1/2-1/2

[Event "November 21 Early 2023"]
[Site "https://www.chess.com"]
[Date "2023.11.21"]
[Round "6"]
[White "Kovalyov_Eduard"]
[Black "secrethawk1"]
[Result "0-1"]
[Board "134"]
[TimeControl "180+1"]
[WhiteElo "2522"]
[BlackElo "2377"]
[WhiteClock "0:00:00"]
[BlackClock "0:01:56"]

1. e4 {[%clk 0:03:00]}  c6 {[%clk 0:02:57]} 2. d4 {[%clk 0:03:00]}  d5 {[%clk 0:02:58]} 3. e5 {[%clk 0:03:01]}  Bf5 {[%clk 0:02:58]} 4. Nf3 {[%clk 0:03:01]}  e6 {[%clk 0:02:58]} 5. Be2 {[%clk 0:03:02]}  c5 {[%clk 0:02:58]} 6. Be3 {[%clk 0:03:01]}  Ne7 {[%clk 0:02:57]} 7. O-O {[%clk 0:02:59]}  cxd4 {[%clk 0:02:52]} 8. Nxd4 {[%clk 0:02:57]}  Nbc6 {[%clk 0:02:53]} 9. Bb5 {[%clk 0:02:41]}  a6 {[%clk 0:02:52]} 10. Bxc6+ {[%clk 0:02:36]}  bxc6 {[%clk 0:02:52]} 11. c3 {[%clk 0:02:23]}  Qc7 {[%clk 0:02:41]} 12. f4 {[%clk 0:02:21]}  Bg6 {[%clk 0:02:37]} 13. Nd2 {[%clk 0:02:20]}  h5 {[%clk 0:02:29]} 14. b4 {[%clk 0:02:15]}  Nf5 {[%clk 0:02:24]} 15. Nxf5 {[%clk 0:02:13]}  Bxf5 {[%clk 0:02:25]} 16. Nb3 {[%clk 0:02:13]}  Be7 {[%clk 0:02:23]} 17. Bc5 {[%clk 0:02:13]}  O-O {[%clk 0:02:22]} 18. Bxe7 {[%clk 0:02:13]}  Qxe7 {[%clk 0:02:22]} 19. Nc5 {[%clk 0:02:13]}  g6 {[%clk 0:02:19]} 20. a4 {[%clk 0:02:07]}  a5 {[%clk 0:02:19]} 21. Qd4 {[%clk 0:02:01]}  Rfb8 {[%clk 0:02:15]} 22. Rf2 {[%clk 0:00:00]}  h4 {[%clk 0:01:56]} 0-1

[Event "November 21 Early 2023"]
[Site "https://www.chess.com"]
[Date "2023.11.21"]
[Round "6"]
[White "MIss_MIaMI"]
[Black "Erzhanov, Arman"]
[Result "0-1"]
[Board "136"]
[TimeControl "180+1"]
[BlackFideId "4138821"]
[WhiteElo "2367"]
[BlackElo "2171"]
[BlackTeam "KAZ"]
[WhiteClock "0:00:39"]
[BlackClock "0:02:05"]

1. e4 {[%clk 0:03:00]}  d6 {[%clk 0:02:57]} 2. Nf3 {[%clk 0:02:59]}  Nf6 {[%clk 0:02:57]} 3. d4 {[%clk 0:03:00]}  Nxe4 {[%clk 0:02:57]} 4. Bd3 {[%clk 0:03:01]}  Nf6 {[%clk 0:02:57]} 5. O-O {[%clk 0:02:54]}  Bg4 {[%clk 0:02:57]} 6. h3 {[%clk 0:02:25]}  Bh5 {[%clk 0:02:56]} 7. c3 {[%clk 0:02:25]}  e6 {[%clk 0:02:56]} 8. Bg5 {[%clk 0:02:24]}  Be7 {[%clk 0:02:56]} 9. Nbd2 {[%clk 0:02:24]}  O-O {[%clk 0:02:56]} 10. Qb3 {[%clk 0:02:25]}  Qc8 {[%clk 0:02:55]} 11. Qc2 {[%clk 0:02:24]}  Bg6 {[%clk 0:02:54]} 12. Bxg6 {[%clk 0:02:23]}  hxg6 {[%clk 0:02:55]} 13. Rfe1 {[%clk 0:02:23]}  Nbd7 {[%clk 0:02:55]} 14. Nf1 {[%clk 0:02:23]}  Re8 {[%clk 0:02:55]} 15. Rad1 {[%clk 0:02:17]}  c6 {[%clk 0:02:55]} 16. Bf4 {[%clk 0:02:16]}  Bf8 {[%clk 0:02:54]} 17. c4 {[%clk 0:02:14]}  d5 {[%clk 0:02:54]} 18. c5 {[%clk 0:02:14]}  b6 {[%clk 0:02:53]} 19. b4 {[%clk 0:02:14]}  a5 {[%clk 0:02:53]} 20. a3 {[%clk 0:02:15]}  axb4 {[%clk 0:02:53]} 21. axb4 {[%clk 0:02:16]}  bxc5 {[%clk 0:02:53]} 22. bxc5 {[%clk 0:02:17]}  Ne4 {[%clk 0:02:51]} 23. Ra1 {[%clk 0:02:07]}  Rxa1 {[%clk 0:02:50]} 24. Rxa1 {[%clk 0:02:08]}  Qb7 {[%clk 0:02:50]} 25. Rb1 {[%clk 0:02:08]}  Qa6 {[%clk 0:02:49]} 26. Ne5 {[%clk 0:02:02]}  Nxe5 {[%clk 0:02:48]} 27. Bxe5 {[%clk 0:02:03]}  Ra8 {[%clk 0:02:45]} 28. Rb6 {[%clk 0:02:02]}  Qa1 {[%clk 0:02:39]} 29. Rb1 {[%clk 0:01:36]}  Qc3 {[%clk 0:02:30]} 30. Qxc3 {[%clk 0:01:34]}  Nxc3 {[%clk 0:02:31]} 31. Rb3 {[%clk 0:01:25]}  Ne2+ {[%clk 0:02:27]} 32. Kh2 {[%clk 0:01:25]}  f6 {[%clk 0:02:27]} 33. Bd6 {[%clk 0:01:14]}  Nxd4 {[%clk 0:02:23]} 34. Rb7 {[%clk 0:01:10]}  Bxd6+ {[%clk 0:02:19]} 35. cxd6 {[%clk 0:01:11]}  Rd8 {[%clk 0:02:19]} 36. d7 {[%clk 0:01:10]}  Kf7 {[%clk 0:02:20]} 37. Rb4 {[%clk 0:00:52]}  e5 {[%clk 0:02:19]} 38. f4 {[%clk 0:00:50]}  Ke6 {[%clk 0:02:19]} 39. fxe5 {[%clk 0:00:50]}  fxe5 {[%clk 0:02:20]} 40. Ne3 {[%clk 0:00:47]}  Rxd7 {[%clk 0:02:20]} 41. Ng4 {[%clk 0:00:48]}  Nf5 {[%clk 0:02:10]} 42. Rb8 {[%clk 0:00:44]}  e4 {[%clk 0:02:08]} 43. Rc8 {[%clk 0:00:44]}  Ne7 {[%clk 0:02:08]} 44. Ra8 {[%clk 0:00:41]}  d4 {[%clk 0:02:08]} 45. Kg3 {[%clk 0:00:41]}  d3 {[%clk 0:02:08]} 46. Ra1 {[%clk 0:00:40]}  d2 {[%clk 0:02:08]} 47. Ne3 {[%clk 0:00:39]}  Nf5+ {[%clk 0:02:07]} 48. Nxf5 {[%clk 0:00:33]}  gxf5 {[%clk 0:02:08]} 49. Rd1 {[%clk 0:00:33]}  Ke5 {[%clk 0:02:08]} 50. Kf2 {[%clk 0:00:33]}  f4 {[%clk 0:02:09]} 51. Ke2 {[%clk 0:00:34]}  e3 {[%clk 0:02:09]} 52. h4 {[%clk 0:00:34]}  Ke4 {[%clk 0:02:07]} 53. h5 {[%clk 0:00:34]}  c5 {[%clk 0:02:07]} 54. h6 {[%clk 0:00:32]}  gxh6 {[%clk 0:02:07]} 55. Rh1 {[%clk 0:00:32]}  d1=Q+ {[%clk 0:02:06]} 56. Rxd1 {[%clk 0:00:33]}  Rxd1 {[%clk 0:02:06]} 57. Kxd1 {[%clk 0:00:33]}  f3 {[%clk 0:02:06]} 58. gxf3+ {[%clk 0:00:34]}  Kxf3 {[%clk 0:02:07]} 59. Ke1 {[%clk 0:00:35]}  e2 {[%clk 0:02:08]} 60. Kd2 {[%clk 0:00:35]}  Kf2 {[%clk 0:02:09]} 61. Kc3 {[%clk 0:00:35]}  e1=Q+ {[%clk 0:02:09]} 62. Kc4 {[%clk 0:00:36]}  Qe4+ {[%clk 0:02:09]} 63. Kb5 {[%clk 0:00:37]}  c4 {[%clk 0:02:08]} 64. Kb4 {[%clk 0:00:37]}  Qd4 {[%clk 0:02:08]} 65. Ka3 {[%clk 0:00:38]}  c3 {[%clk 0:02:08]} 66. Kb3 {[%clk 0:00:38]}  Qd3 {[%clk 0:02:08]} 67. Ka2 {[%clk 0:00:38]}  c2 {[%clk 0:02:08]} 68. Kb2 {[%clk 0:00:38]}  Qd2 {[%clk 0:02:08]} 69. Kb3 {[%clk 0:00:39]}  c1=Q {[%clk 0:02:06]} 70. Ka4 {[%clk 0:00:39]}  Qdb2 {[%clk 0:02:05]} 71. Ka5 {[%clk 0:00:39]}  Qca1# {[%clk 0:02:05]} 0-1

[Event "November 21 Early 2023"]
[Site "https://www.chess.com"]
[Date "2023.11.21"]
[Round "6"]
[White "Dmitrenko, Viktor"]
[Black "Herman, Matthew"]
[Result "0-1"]
[Board "137"]
[TimeControl "180+1"]
[WhiteFideId "14110270"]
[BlackFideId "2028964"]
[WhiteElo "2292"]
[BlackElo "2368"]
[WhiteTeam "UKR"]
[BlackTeam "USA"]
[WhiteClock "0:00:28"]
[BlackClock "0:01:18"]

1. e4 {[%clk 0:03:00]}  e5 {[%clk 0:03:00]} 2. Nf3 {[%clk 0:03:00]}  Nc6 {[%clk 0:03:00]} 3. Nc3 {[%clk 0:03:01]}  Nf6 {[%clk 0:03:00]} 4. d4 {[%clk 0:03:01]}  exd4 {[%clk 0:03:01]} 5. Nd5 {[%clk 0:03:01]}  Nb4 {[%clk 0:03:01]} 6. Bd3 {[%clk 0:03:00]}  Nbxd5 {[%clk 0:02:53]} 7. exd5 {[%clk 0:02:52]}  Bb4+ {[%clk 0:02:51]} 8. c3 {[%clk 0:02:52]}  Qe7+ {[%clk 0:02:27]} 9. Kd2 {[%clk 0:02:41]}  dxc3+ {[%clk 0:02:22]} 10. bxc3 {[%clk 0:02:39]}  Bxc3+ {[%clk 0:02:20]} 11. Kxc3 {[%clk 0:02:39]}  Nxd5+ {[%clk 0:02:20]} 12. Kc2 {[%clk 0:01:47]}  Qc5+ {[%clk 0:02:14]} 13. Kd2 {[%clk 0:01:34]}  Qc3+ {[%clk 0:01:48]} 14. Ke2 {[%clk 0:01:33]}  Qxa1 {[%clk 0:01:48]} 15. Qc2 {[%clk 0:00:28]}  Qc3 {[%clk 0:01:18]} 0-1

[Event "November 21 Early 2023"]
[Site "https://www.chess.com"]
[Date "2023.11.21"]
[Round "6"]
[White "Hoffmann, Asa"]
[Black "Grochal, Joey"]
[Result "0-1"]
[Board "141"]
[TimeControl "180+1"]
[WhiteFideId "2001470"]
[BlackFideId "1019945"]
[WhiteElo "2117"]
[BlackElo "2231"]
[WhiteTeam "USA"]
[BlackTeam "NED"]
[WhiteClock "0:00:06"]
[BlackClock "0:00:54"]

1. d4 {[%clk 0:02:55]}  Nf6 {[%clk 0:02:59]} 2. Bg5 {[%clk 0:02:52]}  Ne4 {[%clk 0:02:59]} 3. Bf4 {[%clk 0:02:51]}  c5 {[%clk 0:02:59]} 4. f3 {[%clk 0:02:51]}  Nf6 {[%clk 0:02:59]} 5. dxc5 {[%clk 0:02:51]}  Qa5+ {[%clk 0:02:59]} 6. Nc3 {[%clk 0:02:51]}  Qxc5 {[%clk 0:02:59]} 7. e4 {[%clk 0:02:51]}  d6 {[%clk 0:02:59]} 8. Qd2 {[%clk 0:02:51]}  Be6 {[%clk 0:02:53]} 9. Be3 {[%clk 0:02:49]}  Qb4 {[%clk 0:02:43]} 10. O-O-O {[%clk 0:02:42]}  Nc6 {[%clk 0:02:40]} 11. a3 {[%clk 0:02:37]}  Qa5 {[%clk 0:02:37]} 12. Nb5 {[%clk 0:02:34]}  Qxd2+ {[%clk 0:02:32]} 13. Rxd2 {[%clk 0:02:34]}  Kd8 {[%clk 0:02:19]} 14. Ne2 {[%clk 0:02:32]}  Nd7 {[%clk 0:02:19]} 15. Nf4 {[%clk 0:02:29]}  a6 {[%clk 0:02:17]} 16. Nxe6+ {[%clk 0:02:28]}  fxe6 {[%clk 0:02:17]} 17. Nc3 {[%clk 0:02:23]}  g6 {[%clk 0:02:07]} 18. Bc4 {[%clk 0:02:22]}  e5 {[%clk 0:02:05]} 19. Be6 {[%clk 0:02:15]}  Bg7 {[%clk 0:01:59]} 20. Nd5 {[%clk 0:02:13]}  Rb8 {[%clk 0:01:41]} 21. Nb6 {[%clk 0:02:05]}  Nxb6 {[%clk 0:01:35]} 22. Bxb6+ {[%clk 0:02:04]}  Ke8 {[%clk 0:01:35]} 23. h4 {[%clk 0:02:02]}  Nd4 {[%clk 0:01:33]} 24. Ba2 {[%clk 0:01:54]}  Kd7 {[%clk 0:01:24]} 25. c3 {[%clk 0:01:52]}  Ne6 {[%clk 0:01:21]} 26. Be3 {[%clk 0:01:51]}  h5 {[%clk 0:01:20]} 27. Kc2 {[%clk 0:01:45]}  Bh6 {[%clk 0:01:19]} 28. Bxh6 {[%clk 0:01:41]}  Rxh6 {[%clk 0:01:20]} 29. Bxe6+ {[%clk 0:01:37]}  Kxe6 {[%clk 0:01:21]} 30. Rd5 {[%clk 0:01:33]}  Rg8 {[%clk 0:01:21]} 31. c4 {[%clk 0:01:26]}  g5 {[%clk 0:01:22]} 32. hxg5 {[%clk 0:01:22]}  Rxg5 {[%clk 0:01:21]} 33. Rh2 {[%clk 0:01:21]}  h4 {[%clk 0:01:21]} 34. c5 {[%clk 0:01:10]}  h3 {[%clk 0:01:19]} 35. gxh3 {[%clk 0:01:07]}  Rg3 {[%clk 0:01:20]} 36. cxd6 {[%clk 0:01:05]}  exd6 {[%clk 0:01:19]} 37. Rhd2 {[%clk 0:01:04]}  Ke7 {[%clk 0:01:20]} 38. R2d3 {[%clk 0:00:59]}  Rgxh3 {[%clk 0:01:19]} 39. b4 {[%clk 0:00:56]}  Rf6 {[%clk 0:01:18]} 40. b5 {[%clk 0:00:53]}  Rhxf3 {[%clk 0:01:17]} 41. bxa6 {[%clk 0:00:51]}  bxa6 {[%clk 0:01:15]} 42. a4 {[%clk 0:00:44]}  Rxd3 {[%clk 0:01:10]} 43. Rxd3 {[%clk 0:00:42]}  Rf4 {[%clk 0:01:06]} 44. Re3 {[%clk 0:00:41]}  Ke6 {[%clk 0:01:06]} 45. Kb3 {[%clk 0:00:41]}  d5 {[%clk 0:01:07]} 46. exd5+ {[%clk 0:00:40]}  Kxd5 {[%clk 0:01:08]} 47. Rd3+ {[%clk 0:00:36]}  Rd4 {[%clk 0:01:07]} 48. Rh3 {[%clk 0:00:35]}  a5 {[%clk 0:01:02]} 49. Rh8 {[%clk 0:00:32]}  Rb4+ {[%clk 0:01:01]} 50. Ka3 {[%clk 0:00:32]}  Rg4 {[%clk 0:00:56]} 51. Ra8 {[%clk 0:00:30]}  e4 {[%clk 0:00:57]} 52. Rxa5+ {[%clk 0:00:30]}  Kd4 {[%clk 0:00:58]} 53. Ra8 {[%clk 0:00:27]}  e3 {[%clk 0:00:58]} 54. Rd8+ {[%clk 0:00:26]}  Kc3 {[%clk 0:00:58]} 55. Re8 {[%clk 0:00:26]}  Kd3 {[%clk 0:00:59]} 56. a5 {[%clk 0:00:25]}  Re4 {[%clk 0:00:59]} 57. Rd8+ {[%clk 0:00:24]}  Kc2 {[%clk 0:00:58]} 58. Rc8+ {[%clk 0:00:23]}  Kd3 {[%clk 0:00:56]} 59. Rd8+ {[%clk 0:00:23]}  Kc4 {[%clk 0:00:56]} 60. Rc8+ {[%clk 0:00:22]}  Kb5 {[%clk 0:00:57]} 61. Rc1 {[%clk 0:00:20]}  e2 {[%clk 0:00:54]} 62. Re1 {[%clk 0:00:17]}  Kc4 {[%clk 0:00:55]} 63. Kb2 {[%clk 0:00:17]}  Kd3 {[%clk 0:00:55]} 64. a6 {[%clk 0:00:17]}  Kd2 {[%clk 0:00:54]} 65. Rxe2+ {[%clk 0:00:16]}  Kxe2 {[%clk 0:00:54]} 66. Kb3 {[%clk 0:00:06]}  Re6 {[%clk 0:00:54]} 0-1

[Event "November 21 Early 2023"]
[Site "https://www.chess.com"]
[Date "2023.11.21"]
[Round "6"]
[White "Rodriguez Fontecha, Marcos"]
[Black "rikchessmx"]
[Result "1-0"]
[Board "142"]
[TimeControl "180+1"]
[WhiteFideId "2256576"]
[WhiteElo "2249"]
[BlackElo "2331"]
[WhiteTeam "ESP"]
[WhiteClock "0:01:24"]
[BlackClock "0:00:38"]

1. Nf3 {[%clk 0:03:00]}  Nf6 {[%clk 0:02:02]} 2. g4 {[%clk 0:02:59]}  Nxg4 {[%clk 0:02:01]} 3. e4 {[%clk 0:02:58]}  e5 {[%clk 0:01:59]} 4. d4 {[%clk 0:02:55]}  exd4 {[%clk 0:01:59]} 5. Nxd4 {[%clk 0:02:55]}  Qh4 {[%clk 0:01:56]} 6. Qf3 {[%clk 0:02:53]}  Bc5 {[%clk 0:01:54]} 7. c3 {[%clk 0:02:51]}  Nc6 {[%clk 0:01:53]} 8. Rg1 {[%clk 0:02:40]}  Nce5 {[%clk 0:01:52]} 9. Qg3 {[%clk 0:02:36]}  Qxg3 {[%clk 0:01:42]} 10. Rxg3 {[%clk 0:02:37]}  Nxh2 {[%clk 0:01:35]} 11. Be2 {[%clk 0:02:35]}  g6 {[%clk 0:01:29]} 12. f4 {[%clk 0:02:34]}  Nc6 {[%clk 0:01:21]} 13. Be3 {[%clk 0:02:30]}  Nxd4 {[%clk 0:01:17]} 14. Bxd4 {[%clk 0:02:31]}  Bxd4 {[%clk 0:01:16]} 15. cxd4 {[%clk 0:02:32]}  h5 {[%clk 0:01:16]} 16. Rh3 {[%clk 0:02:30]}  d5 {[%clk 0:01:15]} 17. Rxh2 {[%clk 0:02:29]}  dxe4 {[%clk 0:01:16]} 18. Nc3 {[%clk 0:02:26]}  Bf5 {[%clk 0:01:15]} 19. Nd5 {[%clk 0:02:14]}  O-O-O {[%clk 0:01:13]} 20. Ne7+ {[%clk 0:02:14]}  Kb8 {[%clk 0:01:12]} 21. Nxf5 {[%clk 0:02:15]}  gxf5 {[%clk 0:01:12]} 22. O-O-O {[%clk 0:02:14]}  h4 {[%clk 0:01:11]} 23. Rh3 {[%clk 0:02:11]}  Rdg8 {[%clk 0:01:08]} 24. Rdh1 {[%clk 0:02:10]}  Rg2 {[%clk 0:01:07]} 25. Rxh4 {[%clk 0:02:10]}  Rhg8 {[%clk 0:01:03]} 26. Rh8 {[%clk 0:02:09]}  c5 {[%clk 0:01:02]} 27. Rxg8+ {[%clk 0:02:07]}  Rxg8 {[%clk 0:01:01]} 28. dxc5 {[%clk 0:02:08]}  Rg2 {[%clk 0:01:01]} 29. Bc4 {[%clk 0:02:07]}  Rf2 {[%clk 0:01:01]} 30. Rh4 {[%clk 0:02:02]}  Kc7 {[%clk 0:01:00]} 31. Bxf7 {[%clk 0:02:02]}  e3 {[%clk 0:01:00]} 32. Bc4 {[%clk 0:01:59]}  Kc6 {[%clk 0:00:56]} 33. b4 {[%clk 0:01:59]}  a5 {[%clk 0:00:50]} 34. a3 {[%clk 0:01:59]}  b5 {[%clk 0:00:50]} 35. cxb6 {[%clk 0:01:58]}  Kxb6 {[%clk 0:00:50]} 36. Kd1 {[%clk 0:01:28]}  Rd2+ {[%clk 0:00:49]} 37. Ke1 {[%clk 0:01:28]}  Rd4 {[%clk 0:00:47]} 38. bxa5+ {[%clk 0:01:28]}  Kxa5 {[%clk 0:00:46]} 39. Be6 {[%clk 0:01:28]}  Rd3 {[%clk 0:00:45]} 40. Bxf5 {[%clk 0:01:26]}  Rxa3 {[%clk 0:00:44]} 41. Ke2 {[%clk 0:01:26]}  Kb6 {[%clk 0:00:45]} 42. Rh3 {[%clk 0:01:26]}  Kc5 {[%clk 0:00:43]} 43. Rxe3 {[%clk 0:01:26]}  Ra2+ {[%clk 0:00:43]} 44. Kf3 {[%clk 0:01:26]}  Kd4 {[%clk 0:00:43]} 45. Re8 {[%clk 0:01:25]}  Ra3+ {[%clk 0:00:42]} 46. Kg4 {[%clk 0:01:26]}  Ra1 {[%clk 0:00:42]} 47. Bg6 {[%clk 0:01:24]}  Rg1+ {[%clk 0:00:43]} 48. Kf5 {[%clk 0:01:24]}  Rxg6 {[%clk 0:00:38]} 49. Kxg6 {[%clk 0:01:24]} 1-0